{"text_format":"3","workbook":"xlsx","n_sheets":1,"sheets":["BodaPresupuesto"],"not_rendered":{"images":1},"read":"whole","date_system":"1900"}

{"sheet":"BodaPresupuesto","index":0,"n_rows":107,"n_cols":3,"rows_kept":107,"merged":[[1,0,1,2],[2,0,2,2]]}
[]
["Boda"]
["Presupuesto"]
[]
[null,"Estimado","Real"]
["Total de gastos ",{"$f":"SUM(B20,B29,B37,B46,B52,B61,B73,B86,B93,B107)","v":0},{"$f":"SUM(C20,C29,C37,C46,C52,C61,C73,C86,C93,C107)","v":0}]
[]
["Ropa","Estimado","Real"]
["Anillo de compromiso"]
["Alianzas"]
["Vestido de la novia"]
["Velo/tocado"]
["Zapatos"]
["Joyas"]
["Liga"]
["Medias"]
["Esmoquin del novio"]
["Zapatos del novio"]
["Otros_______________________"]
["Total de ropa",{"$f":"SUM(B9:B19)","v":0},{"$f":"SUM(C9:C19)","v":0}]
[]
["Decoraciones","Estimado","Real"]
["Decoración para los bancos de la iglesia u otros asientos"]
["Centros para las mesas(excluidas las flores)"]
["Velas"]
["Iluminación"]
["Globos"]
["Otros_______________________"]
["Total de decoración",{"$f":"SUM(B23:B28)","v":0},{"$f":"SUM(C23:C28)","v":0}]
[]
["Regalos","Estimado","Real"]
["Asistentes"]
["Novio y novia"]
["Padres"]
["Lectores y otros participantes"]
["Otros_______________________"]
["Total de regalos",{"$f":"SUM(B32:B36)","v":0},{"$f":"SUM(C32:C36)","v":0}]
[]
["Flores","Estimado","Real"]
["Ramos"]
["Flor del novio"]
["Ramilletes"]
["Ceremonia"]
["Recepción"]
["Otros_______________________"]
["Total de flores",{"$f":"SUM(B40:B45)","v":0},{"$f":"SUM(C40:C45)","v":0}]
[]
["Música","Estimado","Real"]
["Músicos para la ceremonia"]
["Banda/DJ para la recepción"]
["Otros_______________________"]
["Total de música",{"$f":"SUM(B49:B51)","v":0},{"$f":"SUM(C49:C51)","v":0}]
[]
["Fotografía","Estimado","Real"]
["Formales"]
["Espontáneas"]
["Impresiones adicionales"]
["Álbumes de fotos"]
["Vídeo"]
["Otros_______________________"]
["Total de fotografía",{"$f":"SUM(B55:B60)","v":0},{"$f":"SUM(C55:C60)","v":0}]
[]
["Recepción (excluye música y decoración)","Estimado","Real"]
["Gastos de habitaciones o sala"]
["Mesas y sillas"]
["Comida"]
["Bebidas"]
["Mantelería"]
["Tarta"]
["Detalles de los novios"]
["Personal y compensaciones"]
["Otros_______________________"]
["Total de la recepción",{"$f":"SUM(B64:B72)","v":0},{"$f":"SUM(C64:C72)","v":0}]
[]
["Impresión o papelería","Estimado","Real"]
["Invitaciones"]
["Anuncios"]
["Tarjetas de agradecimiento"]
["Artículos de papelería personales"]
["Libro de invitados"]
["Programas"]
["Servilletas de la recepción"]
["Cajitas de cerillas"]
["Caligrafía"]
["Otros_______________________"]
["Total de impresión o papelería",{"$f":"SUM(B76:B85)","v":0},{"$f":"SUM(C76:C85)","v":0}]
[]
["Transporte","Estimado","Real"]
["Limusina/carruaje"]
["Aparcamiento"]
["Taxis"]
["Otros_______________________"]
["Total de transporte",{"$f":"SUM(B89:B92)","v":0},{"$f":"SUM(C89:C92)","v":0}]
[]
["Otros gastos","Estimado","Real"]
["Oficiante"]
["Cuota de la iglesia o del sitio de la ceremonia"]
["Coordinador de la boda"]
["Cena preboda"]
["Fiesta de compromiso"]
["Duchas"]
["Citas del salón"]
["Despedida de soltero y de soltera"]
["Almuerzo"]
["Habitaciones de hotel"]
["Otros_______________________"]
["Total de otros gastos",{"$f":"SUM(B96:B106)","v":0},{"$f":"SUM(C96:C106)","v":0}]